fUSD/lending_fUSD_20240701
["ID","MTS","AMOUNT","RATE_DAILY","PERIOD"]
[330811653,1719822649838,-240.346439,0.000208,2]
[330811654,1719822649847,-240.346439,0.000208,2]
[330811655,1719822649856,-151.0,0.000208,2]
[330811656,1719822649867,-151.0,0.000208,2]
[330811657,1719822649876,-270.934685,0.000208,2]
[330811658,1719822649886,-270.934685,0.000208,2]
[330811659,1719822649895,-151.0,0.000208,2]
[330811660,1719822649905,-732.865049,0.000208,2]
[330811661,1719822649914,-157.84843,0.000208,2]
[330811662,1719822649923,-732.865049,0.000208,2]
[330811663,1719822649932,-259.167047,0.000208,2]
[330811664,1719822649942,-259.167047,0.000208,2]
[330811665,1719822649952,-151.0,0.000208,2]
[330811666,1719822649963,-296.673708,0.000208,2]
[330811667,1719822649972,-154.403912,0.000208,2]
[330811668,1719822649981,-227.681411,0.000208,2]
[330811669,1719822649990,-151.0,0.000208,2]
[330811670,1719822650000,-151.0,0.000208,2]
[330811671,1719822650010,-151.0,0.000208,2]
[330811672,1719822650019,-151.0,0.000208,2]
[330811673,1719822650028,-151.0,0.000208,2]
[330811674,1719822650038,-151.0,0.000208,2]
[330811675,1719822650048,-214.270165,0.000208,2]
[330811676,1719822650057,-151.0,0.000208,2]
[330811677,1719822650066,-151.0,0.000208,2]
[330811678,1719822650075,-151.0,0.000208,2]
[330811679,1719822650084,-151.0,0.000208,2]
[330811680,1719822650094,-151.0,0.000208,2]
[330811681,1719822650103,-417.915828,0.000208,2]
[330811682,1719822650113,-417.915828,0.000208,2]
[330811683,1719822650122,-183.71193,0.000208,2]
[330811684,1719822650133,-183.71193,0.000208,2]
[330811685,1719822650143,-189.183918,0.000208,2]
[330811686,1719822650152,-189.183918,0.000208,2]
[330811687,1719822650162,-151.0,0.000208,2]
[330811688,1719822650171,-151.0,0.000208,2]
[330811689,1719822650181,-327947.811977,0.000208,3]
[330811690,1719822650190,-151.0,0.000208,2]
[330811691,1719822650200,-151.0,0.000208,2]
[330811692,1719822650209,-151.0,0.000208,2]
[330811693,1719822650218,-151.0,0.000208,2]
[330811694,1719822650228,-151.0,0.000208,2]
[330811695,1719822650238,-362.126231,0.00020822,2]
[330811696,1719822650247,-180.31,0.00020857,2]
[330811697,1719822650256,-150.5,0.0002087,30]
[330811698,1719822650266,-150.5,0.0002087,30]
[330811699,1719822650275,-150.5,0.0002088,30]
[330811700,1719822650284,-150.5,0.0002088,30]
[330811701,1719822650294,-150.5,0.0002089,30]
[330811702,1719822650303,-150.5,0.0002089,30]
[330811703,1719822650313,-1434.40525721,0.00020899,5]
[330811704,1719822650323,-151.0,0.000209,2]
[330811705,1719822650332,-151.0,0.000209,2]
[330811706,1719822650341,-270.659997,0.000209,2]
[330811707,1719822650351,-151.0,0.000209,2]
[330811708,1719822650360,-151.0,0.000209,2]
[330811709,1719822650369,-151.0,0.000209,2]
[330811710,1719822650379,-151.0,0.000209,2]
[330811711,1719822650389,-151.0,0.000209,2]
[330811712,1719822650399,-240.346439,0.000209,2]
[330811713,1719822650408,-240.346439,0.000209,2]
[330811714,1719822650418,-151.0,0.000209,2]
[330811715,1719822650427,-151.0,0.000209,2]
[330811716,1719822650437,-270.934685,0.000209,2]
[330811717,1719822650446,-270.934685,0.000209,2]
[330811718,1719822650455,-151.0,0.000209,2]
[330811719,1719822650464,-732.865049,0.000209,2]
[330811720,1719822650474,-732.865049,0.000209,2]
[330811721,1719822650483,-259.167047,0.000209,2]
[330811722,1719822650492,-259.167047,0.000209,2]
[330811723,1719822650501,-151.0,0.000209,2]
[330811724,1719822650510,-151.0,0.000209,2]
[330811725,1719822650519,-151.0,0.000209,2]
[330811726,1719822650528,-151.0,0.000209,2]
[330811727,1719822650539,-151.0,0.000209,2]
[330811728,1719822650548,-151.0,0.000209,2]
[330811729,1719822650557,-151.0,0.000209,2]
[330811730,1719822650566,-151.0,0.000209,2]
[330811731,1719822650576,-151.0,0.000209,2]
[330811732,1719822650585,-151.0,0.000209,2]
[330811733,1719822650595,-151.0,0.000209,2]
[330811734,1719822650604,-151.0,0.000209,2]
[330811735,1719822650614,-417.915828,0.000209,2]
[330811736,1719822650624,-417.915828,0.000209,2]
[330811737,1719822650634,-155.843482,0.000209,2]
[330811738,1719822650646,-155.843482,0.000209,2]
[330811739,1719822650656,-155.843482,0.000209,2]
[330811740,1719822650665,-155.843482,0.000209,2]
[330811741,1719822650674,-9956.01030735,0.000209,2]
[330811742,1719822650684,-612.769234,0.000209,2]
[330811743,1719822650695,-612.769234,0.000209,2]
[330811744,1719822650704,-151.0,0.000209,2]
[330811745,1719822650713,-151.0,0.000209,2]
[330811746,1719822650726,-183.71193,0.000209,2]
[330811747,1719822650736,-183.71193,0.000209,2]
[330811748,1719822650746,-2121.09771473,0.000209,2]
[330811749,1719822650755,-189.183918,0.000209,2]
[330811750,1719822650764,-189.183918,0.000209,2]
[330811751,1719822650775,-151.0,0.000209,2]
[330811752,1719822650784,-151.0,0.000209,2]
[330811753,1719822650794,-151.0,0.000209,2]
[330811754,1719822650803,-151.0,0.000209,2]
[330811755,1719822650813,-346.061401,0.000209,2]
[330811756,1719822650822,-346.061401,0.000209,2]
[330811757,1719822650831,-151.0,0.000209,2]
[330811758,1719822650841,-151.0,0.000209,2]
[330811759,1719822650850,-346.061401,0.000209,2]
[330811760,1719822650859,-346.061401,0.000209,2]
[330811761,1719822650869,-283.66519,0.000209,2]
[330811762,1719822650878,-151.0,0.000209,2]
[330811763,1719822650889,-151.0,0.000209,2]
[330811764,1719822650898,-157352.243058,0.000209,3]
[330811765,1719822650907,-151.0,0.000209,2]
[330811766,1719822650916,-151.0,0.000209,2]
[330811767,1719822650925,-151.0,0.000209,2]
[330811768,1719822650934,-151.0,0.000209,2]
[330811769,1719822650943,-155.678447,0.000209,2]
[330811770,1719822650953,-155.678447,0.000209,2]
[330811771,1719822650962,-194.380588,0.000209,2]
[330811772,1719822650972,-194.380588,0.000209,2]
[330811773,1719822650981,-155.678447,0.000209,2]
[330811774,1719822650991,-155.678447,0.000209,2]
[330811775,1719822651000,-194.380588,0.000209,2]
[330811776,1719822651010,-194.380588,0.000209,2]
[330811777,1719822651019,-3945.714343,0.000209,2]
[330811778,1719822651028,-3945.714343,0.000209,2]
[330811779,1719822651037,-3945.714343,0.000209,2]
[330811780,1719822651047,-3945.714343,0.000209,2]
[330811781,1719822651055,-151.0,0.000209,2]
[330811782,1719822651064,-151.0,0.000209,2]
[330811783,1719822651074,-151.0,0.000209,2]
[330811784,1719822651082,-5950.04161873,0.000209,2]
[330811785,1719822651091,-151.0,0.00020905,2]
[330811786,1719822651100,-19860.68674364,0.00020962,2]
[330811787,1719822651109,-550.47298576,0.00020975,2]
[330811788,1719822651118,-24641.18328434,0.00020975,2]
[330811789,1719822651127,-581.33393112,0.00020975,2]
[330811790,1719822651139,-174355.97382622,0.00020975,2]
[330811791,1719822651148,-151.0,0.00020975,2]
[330811792,1719822651158,-151.0,0.00020975,2]
[330811793,1719822651167,-151.0,0.00020975,2]
[330811794,1719822651176,-151.0,0.00020975,2]
[330811795,1719822651186,-151.0,0.00020975,2]
[330811796,1719822651195,-151.0,0.00020975,2]
[330811797,1719822651205,-240.346439,0.00020975,2]
[330811798,1719822651215,-240.346439,0.00020975,2]
[330811799,1719822651224,-151.0,0.00020975,2]
[330811800,1719822651233,-151.0,0.00020975,2]
[330811801,1719822651243,-270.934685,0.00020975,2]
[330811802,1719822651252,-270.934685,0.00020975,2]
[330811803,1719822651262,-151.0,0.00020975,2]
[330811804,1719822651271,-732.865049,0.00020975,2]
[330811805,1719822651282,-732.865049,0.00020975,2]
[330811806,1719822651295,-259.167047,0.00020975,2]
[330811807,1719822651304,-259.167047,0.00020975,2]
[330811808,1719822651314,-151.0,0.00020975,2]
[330811809,1719822651323,-151.0,0.00020975,2]
[330811810,1719822651333,-295.0,0.00020975,2]
[330811811,1719822651343,-151.0,0.00020975,2]
[330811812,1719822651352,-151.0,0.00020975,2]
[330811813,1719822651361,-151.0,0.00020975,2]
[330811814,1719822651370,-151.0,0.00020975,2]
[330811815,1719822651379,-151.0,0.00020975,2]
[330811816,1719822651388,-151.0,0.00020975,2]
[330811817,1719822651398,-151.0,0.00020975,2]
[330811818,1719822651406,-151.0,0.00020975,2]
[330811819,1719822651415,-151.0,0.00020975,2]
[330811820,1719822651424,-417.915828,0.00020975,2]
[330811821,1719822651433,-417.915828,0.00020975,2]
[330811822,1719822651442,-155.843482,0.00020975,2]
[330811823,1719822651451,-155.843482,0.00020975,2]
[330811824,1719822651459,-612.769234,0.00020975,2]
[330811825,1719822651468,-151.0,0.00020975,2]
[330811826,1719822651477,-183.71193,0.00020975,2]
[330811827,1719822651485,-183.71193,0.00020975,2]
[330811828,1719822651494,-189.183918,0.00020975,2]
[330811829,1719822651503,-189.183918,0.00020975,2]
[330811830,1719822651512,-151.0,0.00020975,2]
[330811831,1719822651521,-151.0,0.00020975,2]
[330811832,1719822651529,-346.061401,0.00020975,2]
[330811833,1719822651538,-151.0,0.00020975,2]
[330811834,1719822651547,-346.061401,0.00020975,2]
[330811835,1719822651556,-151.0,0.00020975,2]
[330811836,1719822651565,-151.0,0.00020975,2]
[330811837,1719822651574,-155.678447,0.00020975,2]
[330811838,1719822651583,-194.380588,0.00020975,2]
[330811839,1719822651592,-155.678447,0.00020975,2]
[330811840,1719822651601,-194.380588,0.00020975,2]
[330811841,1719822651610,-3945.714343,0.00020975,2]
[330811842,1719822651619,-3945.714343,0.00020975,2]
[330811843,1719822651628,-151.0,0.00020975,2]
[330811844,1719822651639,-151.0,0.00020975,2]
[330811845,1719822651653,-151.0,0.00020975,2]
[330811846,1719822651665,-158.61860174,0.0002099,2]
[330811847,1719822651675,-225.19167095,0.00021,2]
[330811848,1719822651687,-1206.48255,0.00021,7]
[330811849,1719822651696,-1900.0,0.00021,6]
[330811850,1719822651706,-387662.55679423,0.00021,3]
[330811851,1719822652009,-1377.53454,0.00021,3]
[330811852,1719822652055,-3992.50836156,0.00021,3]
[330811853,1719822652066,-684.85547295,0.00021,3]
[330811854,1719822652077,-341.23407567,0.00021,3]
[330811855,1719822652412,-282.83662469,0.00014826,2]
[330811856,1719822652425,-118.98825028,0.00014826,2]
[330811857,1719822652435,-401.82487494,0.00016295,2]
[330811858,1719822652444,-202.093516,0.00016945,2]
[330811859,1719822652453,-354.72,0.00017777,2]
[330811860,1719822652462,-202.093516,0.00018309,2]
[330811861,1719822652471,-202.093516,0.00019178,2]
[330811862,1719822652481,-820.232,0.00019432,2]
[330811863,1719822652489,-324.40832954,0.00019875,2]
[330811864,1719822652499,-1841.3160107,0.00021,3]
[330811868,1719822668875,158.23,0.00010326,2]
[330811887,1719822788193,21700.59850447,0.00011199,2]
[330811888,1719822792212,35579.04417904,0.00011199,2]
[330811901,1719822920805,1398.36172563,0.00011199,2]
[330811902,1719822926468,430.89547468,0.00011199,2]
[330811903,1719822959231,26465.0,0.00011199,2]
[330811904,1719822959254,9114.04417904,0.00011199,2]
[330811905,1719822974875,1401.82347801,0.00011199,7]
[330811910,1719823013472,805.42887238,0.00011199,2]
[330811911,1719823022295,-155.0,0.00012273,2]
[330811912,1719823022316,-227.0716558,0.00012273,2]
[330811913,1719823022336,-299.88600568,0.00012273,2]
[330811914,1719823022356,-155.0,0.00012273,2]
[330811915,1719823022376,-155.59034052,0.00012302,2]
[330811916,1719823022397,-545.59859068,0.00012302,2]
[330811917,1719823022417,-498.62753763,0.00012302,2]
[330811918,1719823022438,-496.61572739,0.00012302,2]
[330811919,1719823022465,-10282.2486417,0.00012304,2]
[330811920,1719823022486,-155.0,0.00012314,2]
[330811921,1719823096178,814.88,0.0002215,120]
[330811922,1719823096228,20000.0,0.00011199,2]
[330811923,1719823096251,4822.10915021,0.00011199,2]
[330811924,1719823096272,10756.93502883,0.00011199,2]
[330811925,1719823112521,814.8,0.00012,2]
[330811926,1719823232709,150.5,0.0001499,30]
[330811927,1719823233216,150.5,0.0001498,30]
[330811928,1719823233716,150.5,0.0001497,30]
[330811929,1719823251014,1068.74677521,0.00011199,2]
[330811930,1719823271603,1401.82347801,0.00011199,7]
[330811931,1719823304075,-155.72385129,0.00012314,2]
[330811932,1719823304098,-184.7840485,0.00013128,2]
[330811933,1719823304125,-1852.42,0.00013147,2]
[330811934,1719823304150,-23890.0,0.00013211,2]
[330811935,1719823304173,-200.0,0.00013374,2]
[330811936,1719823304198,-11510.50184699,0.00013472,2]
[330811937,1719823342264,35579.04417904,0.00011199,2]
[330811938,1719823351574,273.86,0.0001499,30]
[330811940,1719823384252,155.22003575,0.00011199,2]
[330811941,1719823389093,411.47785028,0.00011199,2]
[330811942,1719823402673,20316.69460363,0.00011199,2]
[330811943,1719823431938,18318.75842862,0.00011199,2]
[330811944,1719823442227,24702.13687985,0.00011199,2]
[330811945,1719823458765,4714.50354419,0.00011199,2]
[330811946,1719823484731,35579.04417904,0.00011199,2]
[330811948,1719823572414,5252.47518386,0.00011199,2]
[330811949,1719823573919,1401.82347801,0.00011199,7]
[330811950,1719823573987,1013.16514783,0.00011199,2]
[330811952,1719823586722,1271.58208289,0.00011199,2]
[330811953,1719823593127,1054.51068328,0.00011199,2]
[330811954,1719823596208,1494.4651745,0.00011199,2]
[330811955,1719823615744,35579.04417904,0.00011199,2]
[330811957,1719823675615,593.20627358,0.00011199,2]
[330811958,1719823678382,268.03858911,0.00011199,2]
[330811963,1719823704929,263.46776226,0.00011199,2]
[330811965,1719823722096,296.71594966,0.00011199,2]
[330811966,1719823727130,174.17419987,0.00011199,2]
[330811967,1719823729584,196.09224429,0.00011199,2]
[330811968,1719823747634,206.24976441,0.00011199,2]
[330811972,1719823800249,181.92229,0.00011199,2]
[330811973,1719823800273,333.04628602,0.00011199,2]
[330811976,1719823831870,180.72,9.94e-05,2]
[330811986,1719823832083,-331.78687896,0.00011402,2]
[330811987,1719823832093,-438.39,0.00011461,2]
[330811989,1719823832103,-1985.29059746,0.00011502,2]
[330811991,1719823832112,-544.53252358,0.00012202,2]
[330811993,1719823832124,-1882.84322713,0.00012202,2]
[330811994,1719823832136,-2022.01804929,0.00012202,2]
[330811995,1719823832145,-3114.08829067,0.00012302,2]
[330811996,1719823832164,-3932.12964903,0.00012302,2]
[330811997,1719823832175,-293.43812873,0.00012302,2]
[330811998,1719823832211,-672.13202934,0.00012302,2]
[330811999,1719823832222,-715.99630607,0.00012302,2]
[330812000,1719823832272,-1062.45142934,0.00012302,2]
[330812001,1719823832325,-12605.4,0.00012302,2]
[330812002,1719823832337,-16093.86231983,0.00012302,2]
[330812003,1719823832348,-7464.47,0.00012424,2]
[330812004,1719823832359,-1000.0,0.0001246,2]
[330812005,1719823832368,-1852.42,0.00012493,2]
[330812006,1719823832378,-212.36,0.00012522,2]
[330812007,1719823832387,-167.44,0.0001254,2]
[330812008,1719823832396,-1245.75,0.00012541,2]
[330812009,1719823832405,-1227.25,0.0001256,2]
[330812010,1719823832414,-250.0,0.00012568,2]
[330812011,1719823832423,-499.99,0.00012568,2]
[330812012,1719823832432,-725.66,0.00012568,2]
[330812013,1719823832445,-500.0,0.00012605,3]
[330812014,1719823832454,-2743.13,0.0001292,2]
[330812015,1719823832463,-150.0,0.00012971,2]
[330812016,1719823832472,-299.99,0.00012971,2]
[330812018,1719823832485,-160.33,0.00013017,2]
[330812020,1719823832494,-160.33,0.00013102,2]
[330812022,1719823832502,-644.31437683,0.00013128,7]
[330812024,1719823832511,-160.33,0.00013187,2]
[330812026,1719823832520,-160.33,0.00013272,2]
[330812028,1719823832529,-160.33,0.00013356,2]
[330812030,1719823832538,-160.33,0.00013441,2]
[330812032,1719823832548,-155.0,0.00013472,2]
[330812034,1719823832557,-2361.9,0.00013522,2]
[330812036,1719823832567,-160.33,0.00013526,2]
[330812039,1719823832576,-155.37902784,0.00013543,2]
[330812040,1719823832585,-160.33,0.00013611,2]
[330812042,1719823832594,-160.33,0.00013696,2]
[330812045,1719823832604,-191.15,0.00013699,2]
[330812047,1719823832613,-311.58,0.00013699,2]
[330812049,1719823832621,-500.0,0.00013699,2]
[330812050,1719823832630,-200.0,0.00013699,2]
[330812052,1719823832640,-438.39,0.00013725,2]
[330812054,1719823832649,-42327.9794,0.00013799,2]
[330812057,1719823832658,-2345.08,0.00013826,2]
[330812059,1719823832668,-2829.81,0.00013826,2]
[330812061,1719823832677,-1841.57738798,0.0001387,2]
[330812063,1719823832686,-274.63400537,0.00013889,2]
[330812065,1719823832699,-324.40832954,0.00013889,2]
[330812066,1719823832707,-161.63425311,0.00013889,2]
[330812069,1719823832717,-2507.45451964,0.000139,2]
[330812071,1719823832726,-170.65315521,0.000139,2]
[330812073,1719823832735,-169.06,0.00013913,2]
[330812075,1719823832744,-1590.53,0.00013973,3]
[330812077,1719823832753,-241.22483998,0.00013979,2]
[330812079,1719823832762,-2211.29863488,0.00013989,2]
[330812173,1719823833757,4732.22070273,0.00011199,2]
[330812223,1719823838134,-2603.10643675,0.00013989,2]
[330812224,1719823838146,-580.4,0.00013989,2]
[330812225,1719823838159,-1592.53420064,0.00013989,2]
[330812226,1719823838276,-3813.73549989,0.00013989,2]
[330812227,1719823838288,-600.0,0.00013989,2]
[330812228,1719823838381,-3210.79791008,0.00013989,2]
[330812229,1719823838393,-678790.23709145,0.00013989,2]
[330812230,1719823838403,-548047.94916615,0.00013989,2]
[330812231,1719823838413,-102344.59638399,0.00014,2]
[330812232,1719823838423,-1000.0,0.00014018,2]
[330812233,1719823838432,-159.61,0.00014121,2]
[330812234,1719823838442,-274.63400536,0.00014142,2]
[330812235,1719823838453,-250.0,0.0001436,2]
[330812236,1719823838463,-274.63400536,0.00014395,2]
[330812237,1719823838473,-274.63400536,0.00014647,2]
[330812238,1719823838484,-2507.45451956,0.00014673,2]
[330812239,1719823838493,-274.63400536,0.000149,2]
[330812240,1719823838503,-5000.0,0.00015,2]
[330812241,1719823838513,-24641.18328434,0.00015,2]
[330812242,1719823838523,-848098.87370009,0.00015,2]
[330812243,1719823838532,-151.0,0.00015,2]
[330812244,1719823838542,-151.0,0.00015,2]
[330812245,1719823838552,-151.0,0.00015,2]
[330812246,1719823838562,-151.0,0.00015,2]
[330812247,1719823838572,-151.0,0.00015,2]
[330812248,1719823838581,-151.0,0.00015,2]
[330812249,1719823838591,-393.087459,0.00015,2]
[330812250,1719823838600,-393.087459,0.00015,2]
[330812251,1719823838609,-500.0,0.00015102,2]
[330812252,1719823838619,-500.0,0.00015102,2]
[330812253,1719823838629,-2507.45451956,0.00015445,2]
[330812254,1719823838638,-1000.0,0.00015576,2]
[330812255,1719823838648,-170.79,0.00015831,2]
[330812256,1719823838658,-438.39,0.00015989,2]
[330812257,1719823838667,-170.65315517,0.00016025,2]
[330812258,1719823838677,-5883.64,0.00016116,2]
[330812259,1719823838687,-2507.45451956,0.00016218,2]
[330812260,1719823838699,-191.15,0.00016438,2]
[330812261,1719823838709,-186.06,0.00016712,2]
[330812262,1719823838719,-2507.45451956,0.00016991,2]
[330812263,1719823838728,-2493.0,0.000171,2]
[330812264,1719823838742,-1000.0,0.00017133,2]
[330812265,1719823838752,-636.0,0.00017411,2]
[330812266,1719823838761,-2507.45451956,0.00017764,2]
[330812267,1719823838771,-155.0,0.00018,2]
[330812268,1719823838781,-156.46029077,0.00018,2]
[330812269,1719823838791,-170.65315517,0.0001815,2]
[330812270,1719823838800,-438.39,0.00018252,2]
[330812271,1719823838810,-170.79,0.00018444,2]
[330812272,1719823838819,-10000.0,0.00018475,2]
[330812273,1719823838829,-2507.45451956,0.00018536,2]
[330812274,1719823838839,-861.73760512,0.00018617,2]
[330812275,1719823838848,-1000.0,0.00018691,2]
[330812276,1719823838857,-203.78502014,0.00018764,2]
[330812277,1719823838867,-2363.45,0.00018849,30]
[330812278,1719823838876,-155.3842264,0.00018887,2]
[330812279,1719823838885,-155.06,0.000189,2]
[330812280,1719823838895,-155.06,0.000189,2]
[330812281,1719823838904,-155.06,0.000189,2]
[330812282,1719823838914,-155.06,0.000189,2]
[330812283,1719823838924,-5847.36916929,0.00019,2]
[330812284,1719823838933,-156.0,0.00019,2]
[330812285,1719823838943,-220.51373842,0.00019,2]
[330812286,1719823838959,-174.637467,0.00019169,2]
[330812287,1719823838968,-500.0,0.00019178,2]
[330812288,1719823838979,-250.0,0.00019178,2]
[330812289,1719823838988,-500.0,0.00019178,2]
[330812290,1719823838998,-500.0,0.00019178,2]
[330812291,1719823839009,-503.74327028,0.00019178,2]
[330812292,1719823839021,-500.0,0.00019178,2]
[330812293,1719823839031,-342.81253998,0.00019178,2]
[330812294,1719823839042,-592.2560754,0.00019178,2]
[330812295,1719823839052,-500.0,0.00019178,2]
[330812296,1719823839063,-500.0,0.00019178,2]
[330812297,1719823839074,-500.0,0.00019178,2]
[330812298,1719823839085,-267.88488313,0.00019178,2]
[330812299,1719823839096,-398.6236593,0.00019178,2]
[330812300,1719823839106,-500.0,0.00019178,2]
[330812301,1719823839117,-500.0,0.00019178,2]
[330812302,1719823839127,-500.0,0.00019178,2]
[330812303,1719823839138,-500.0,0.00019178,2]
[330812304,1719823839149,-500.0,0.00019178,2]
[330812305,1719823839160,-500.0,0.00019178,2]
[330812306,1719823839171,-311.58,0.00019178,2]
[330812307,1719823839182,-250.0,0.00019178,2]
[330812308,1719823839193,-152.1,0.00019178,2]
[330812309,1719823839206,-160.28056815,0.00019217,2]
[330812310,1719823839218,-153.38249541,0.00019265,2]
[330812311,1719823839228,-227.0716558,0.00019299,2]
[330812312,1719823839240,-2507.45451956,0.00019309,2]
[330812313,1719823839251,-229.51186645,0.0001935,2]
[330812314,1719823839262,-186.8978008,0.00019441,2]
[330812315,1719823839273,-881.80386009,0.000195,2]
[330812316,1719823839283,-2500.0,0.000195,2]
[330812317,1719823839294,-1270.0,0.00019532,2]
[330812318,1719823839304,-1649.0,0.00019532,2]
[330812319,1719823839314,-167.004,0.00019532,2]
[330812320,1719823839325,-1976.0,0.00019532,2]
[330812321,1719823839334,-2826.8,0.00019532,2]
[330812322,1719823839344,-150.0,0.00019532,2]
[330812323,1719823839353,-861.73760512,0.00019563,2]
[330812324,1719823839364,-272.11678812,0.00019899,2]
[330812325,1719823839374,-155.0,0.00019964,2]
[330812326,1719823839384,-4279.14032286,0.0002,15]
[330812327,1719823839394,-1274.88625925,0.0002,2]
[330812328,1719823839404,-155.0,0.0002,2]
[330812329,1719823839414,-156.0,0.0002,2]
[330812330,1719823839424,-448.06132112,0.0002,2]
[330812331,1719823839435,-155.0,0.0002,2]
[330812332,1719823839445,-188.17121959,0.0002,2]
[330812333,1719823839456,-327.16438361,0.0002,2]
[330812334,1719823839467,-581.33393112,0.0002,2]
[330812335,1719823839477,-3813.61546691,0.0002,3]
[330812336,1719823839487,-356.0,0.0002,2]
[330812337,1719823839504,-1000.0,0.0002,2]
[330812338,1719823839519,-7965.00736609,0.0002,2]
[330812339,1719823839535,-225.0,0.0002,2]
[330812340,1719823839549,-1638.21637842,0.0002,2]
[330812341,1719823839562,-2507.45451956,0.00020082,2]
[330812342,1719823839573,-1257.0,0.000201,2]
[330812343,1719823839586,-170.65315517,0.00020275,2]
[330812344,1719823839598,-155.3842264,0.00020458,2]
[330812345,1719823839611,-151.04669052,0.0002048,2]
[330812346,1719823839624,-186.8978008,0.00020496,2]
[330812347,1719823839637,-861.73760512,0.00020509,2]
[330812348,1719823839650,-438.39,0.00020516,2]
[330812349,1719823839663,-151.04669052,0.00020564,2]
[330812350,1719823839677,-454.40614433,0.000207,2]
[330812351,1719823839691,-152.1,0.00020776,2]
[330812352,1719823839704,-160.28056815,0.00020777,2]
[330812353,1719823839717,-166.66666,0.0002079,2]
[330812354,1719823839729,-151.0,0.000208,2]
[330812355,1719823839742,-151.0,0.000208,2]
[330812356,1719823839754,-151.0,0.000208,2]
[330812357,1719823839766,-151.0,0.000208,2]
[330812358,1719823839779,-231.348806,0.000208,2]
[330812359,1719823839791,-151.0,0.000208,2]
[330812360,1719823839804,-151.0,0.000208,2]
[330812361,1719823839816,-151.0,0.000208,2]
[330812362,1719823839829,-151.0,0.000208,2]
[330812363,1719823839839,-151.0,0.000208,2]
[330812364,1719823839850,-393.087459,0.000208,2]
[330812365,1719823839863,-393.087459,0.000208,2]
[330812366,1719823839874,-151.0,0.000208,2]
[330812367,1719823839887,-151.0,0.000208,2]
[330812368,1719823839899,-151.0,0.000208,2]
[330812369,1719823839911,-151.0,0.000208,2]
[330812370,1719823839923,-151.0,0.000208,2]
[330812371,1719823839936,-151.0,0.000208,2]
[330812372,1719823839950,-151.0,0.000208,2]
[330812373,1719823839963,-248.450561,0.000208,2]
[330812374,1719823839977,-151.0,0.000208,2]
[330812375,1719823839988,-151.0,0.000208,2]
[330812376,1719823840000,-157.839066,0.000208,2]
[330812377,1719823840014,-157.839066,0.000208,2]
[330812378,1719823840025,-153.135384,0.000208,2]
[330812379,1719823840036,-151.0,0.000208,2]
[330812380,1719823840050,-300943.585611,0.000208,3]
[330812381,1719823840062,-151.0,0.000208,2]
[330812382,1719823840075,-151.0,0.000208,2]
[330812384,1719823840090,-151.0,0.000208,2]
[330812385,1719823840101,-151.0,0.000208,2]
[330812386,1719823840112,-151.0,0.000208,2]
[330812387,1719823840124,-151.0,0.000208,2]
[330812388,1719823840135,-151.0,0.000208,2]
[330812389,1719823840148,-1183.714303,0.000208,2]
[330812390,1719823840160,-180.056352,0.000208,2]